[Event "Groningen Festival 2019-B"]
[Site "Groningen"]
[Date "2019.12.23"]
[Round "3.5"]
[White "Kunnen, Ruurd"]
[Black "Bosker, Peter"]
[Result "1/2-1/2"]
[ECO "E01"]
[WhiteElo "1846"]
[BlackElo "2075"]
[Annotator "NA RC"]
[PlyCount "38"]
[EventDate "2019.12.15"]
[EventType "swiss"]
[EventCountry "NED"]
[SourceTitle "playchess.com"]
[Source "ChessBase"]
[SourceQuality "1"]
[TimeControl "40/5400+30:1800+30"]

{[%evp 8,38,15,18,22,16,23,18,16,20,55,43,47,2,71,69,73,63,66,62,70,45,48,44,45,39,38,37,45,36,55,35,34]} 1. Nf3 {[%emt 0:00:00]} Nf6 {[%emt 0:00:04]} 2. c4 {[%emt 0:00:00]} e6 {[%emt 0:00:18]} 3. g3 {[%emt 0:00:00]} d5 {[%emt 0:00:52]} 4. Bg2 {[%emt 0:00:09]} c6 {[%emt 0:05:06]} 5. b3 {[%emt 0:06:07]} Nbd7 {[%emt 0:01:15]} 6. Bb2 {[%emt 0:00:35]} Bd6 {[%emt 0:00:43]} 7. d4 {[%emt 0:01:14]} O-O {[%emt 0:03:08]} 8. O-O {[%emt 0:00:10]} Qe7 {[%emt 0:04:35]} 9. Ne5 {[%emt 0:03:56]} Rd8 {[%emt 0:05:47] E01: Catalan: Early deviations} 10. Qc2 {[%emt 0:05:01]} (10. e3 Ne4 11. Qc2 Bxe5 12. dxe5 Nec5 13. Nd2 a5 14. e4 Na6 15. cxd5 exd5 16. exd5 cxd5 17. Qc3 {1-0 (39) Cori Tello,D (2391)-Blagojevic,T (2232) Aracaju 2018}) 10... Nf8 {[%emt 0:09:54]} 11. Nd2 {[%emt 0:02:22]} Ng6 {[%emt 0:04:14]} 12. e4 {[%emt 0:04:07]} dxe4 {[%emt 0:05:42]} 13. Nxe4 {[%emt 0:00:40]} Nxe4 {[%emt 0:00:09]} 14. Qxe4 $146 {[%emt 0:04:24]} ({Predecessor:} 14. Bxe4 Ba3 15. Rad1 Bxb2 16. Qxb2 Bd7 17. Qc2 {½-½ (67) Rasmussen,J (1982)-Sanz Losada,V (2121) Krakow 2018}) 14... Nxe5 {[%emt 0:12:18]} 15. dxe5 {[%emt 0:00:15]} Bc5 {[%emt 0:00:05]} 16. Rad1 {[%emt 0:00:27]} Bd7 {[%emt 0:00:30]} 17. Rd3 {[%emt 0:05:55]} Be8 {[%emt 0:00:39]} 18. Rfd1 {[%emt 0:00:26]} Rxd3 {[%emt 0:05:48]} 19. Qxd3 {[%emt 0:05:32]} Qc7 $14 {[%emt 0:23:36]} 1/2-1/2

[Event "Groningen Festival 2019-B"]
[Site "Groningen"]
[Date "2019.12.23"]
[Round "3.6"]
[White "Salihbegovic, Edim"]
[Black "Van der Meer, Henk"]
[Result "1-0"]
[ECO "E92"]
[WhiteElo "2011"]
[BlackElo "1785"]
[Annotator "NA RC"]
[PlyCount "84"]
[EventDate "2019.12.15"]
[EventType "swiss"]
[EventCountry "NED"]
[SourceTitle "playchess.com"]
[Source "ChessBase"]
[SourceQuality "1"]
[TimeControl "40/5400+30:1800+30"]

{[%evp 8,84,47,28,36,28,40,8,14,5,0,15,0,-10,6,-14,-4,-7,0,-12,0,-29,-28,-26,-20,-34,-20,-14,0,0,0,-16,7,0,0,0,0,0,0,0,3,-8,1,8,47,32767,32767,32767,30,21,132,32767,32767,32767,32767,32767,32767,32767,32767,32767,246,266,288,32767,301,326,32767,32767,32767,32767,414,473,535,782,581,699,766,1018,847]} 1. d4 {[%emt 0:00:00]} Nf6 {[%emt 0:00:00]} 2. c4 {[%emt 0:00:00]} d6 {[%emt 0:00:19]} 3. Nc3 {[%emt 0:03:20]} g6 {[%emt 0:00:26]} 4. e4 {[%emt 0:02:08]} Bg7 {[%emt 0:00:12]} 5. Nf3 {[%emt 0:03:08]} O-O {[%emt 0:00:16]} 6. Be2 {[%emt 0:00:15]} e5 {[%emt 0:01:10]} 7. dxe5 {[%emt 0:00:25]} dxe5 {[%emt 0:00:32]} 8. Qxd8 {[%emt 0:00:07]} Rxd8 {[%emt 0:00:12]} 9. Bg5 {[%emt 0:00:40]} Re8 {[%emt 0:03:13]} 10. Nd5 {[%emt 0:01:40]} Nxd5 {[%emt 0:04:46]} 11. cxd5 {[%emt 0:00:41]} c6 {[%emt 0:00:35]} 12. Bc4 {[%emt 0:00:42]} cxd5 {[%emt 0:00:48]} 13. Bxd5 {[%emt 0:00:21]} Na6 {[%emt 0:01:17]} 14. a3 {[%emt 0:17:01] E92: King's Indian: Classical: 6 Be2 e5: 7 dxe5, 7 Be3 and Petrosian System without 7...Nbd7} (14. O-O Nb4 15. Bc4 Be6 16. Rfc1 Bxc4 17. Rxc4 Nd3 18. Rc7 b6 19. Rd1 Nc5 20. Be3 Ne6 21. Rcd7 h6 22. g3 {½-½ (52) Vorobiov,E (2572)-Sethuraman,S (2658) Stockholm 2016}) 14... Nc7 {[%emt 0:03:27]} 15. Ba2 {[%emt 0:03:17]} Be6 {[%emt 0:05:55]} 16. Bxe6 $146 {[%emt 0:33:50]} ({Predecessor:} 16. O-O Bxa2 17. Rxa2 Ne6 18. Be3 Nd4 19. b4 a5 20. bxa5 Rxa5 21. Rb1 Nxf3+ 22. gxf3 Bf8 23. a4 Rea8 24. Rxb7 Rxa4 25. Rd2 R4a6 26. Rdd7 Rf6 27. Kg2 h6 {½-½ (27) Ungureanu,E (2264)-Marcantoni,H (2250) Val Thorens 2006}) 16... Nxe6 {[%emt 0:00:21]} 17. Be3 {[%emt 0:02:00]} Nd4 {[%emt 0:16:20]} 18. O-O-O {[%emt 0:02:16]} b6 {[%emt 0:22:55]} 19. Rhe1 {[%emt 0:03:57]} Red8 {[%emt 0:10:13]} 20. Nxd4 {[%emt 0:12:18]} exd4 {[%emt 0:00:35]} 21. Bg5 {[%emt 0:00:23]} Rd7 {[%emt 0:02:35]} 22. Rd3 {[%emt 0:02:56]} Rc8+ {[%emt 0:03:42]} 23. Kb1 {[%emt 0:00:12]} Rc5 {[%emt 0:01:12]} 24. h4 {[%emt 0:03:43]} h6 {[%emt 0:03:58]} 25. Bf4 {[%emt 0:02:23]} g5 {[%emt 0:06:04]} 26. hxg5 {[%emt 0:00:24]} hxg5 {[%emt 0:00:17]} 27. Bd2 {[%emt 0:00:56]} a5 {[%emt 0:02:26]} 28. Rc1 {[%emt 0:00:40]} Rdc7 {[%emt 0:04:23]} (28... a4 $11) 29. Bxg5 {[%emt 0:00:32]} Rxc1+ {[%emt 0:01:12]} 30. Bxc1 {[%emt 0:00:04]} Re7 {[%emt 0:01:24]} 31. f3 {[%emt 0:01:09]} Kf8 {[%emt 0:01:32]} 32. Bf4 {[%emt 0:00:45]} Rd7 {[%emt 0:00:22]} 33. a4 {[%emt 0:01:02]} Ke8 {[%emt 0:01:39]} 34. Kc2 {[%emt 0:00:20]} Re7 {[%emt 0:00:23]} 35. g4 {[%emt 0:00:31]} Kd7 {[%emt 0:00:41]} 36. Rb3 {[%emt 0:00:24]} Re6 {[%emt 0:00:38]} 37. Kd3 {[%emt 0:00:21]} Rc6 {[%emt 0:00:07]} 38. e5 {[%emt 0:01:02]} f6 {[%emt 0:01:49]} 39. Kxd4 {[%emt 0:00:27]} fxe5+ {[%emt 0:00:14]} 40. Bxe5 {[%emt 0:00:13]} Rd6+ {[%emt 0:00:34]} 41. Ke4 $18 {[%emt 0:30:12]} Re6 {[%emt 0:30:16]} 42. Rb5 {[%emt 0:00:27]} Bf8 {[%emt 0:00:40]} 1-0

[Event "Groningen Festival 2019-B"]
[Site "Groningen"]
[Date "2019.12.24"]
[Round "4.1"]
[White "Zuiderweg, Edwin"]
[Black "Akotchik, Victor"]
[Result "0-1"]
[ECO "B50"]
[WhiteElo "1951"]
[BlackElo "2095"]
[Annotator "NA RC"]
[PlyCount "58"]
[EventDate "2019.12.15"]
[EventType "swiss"]
[EventCountry "NED"]
[SourceTitle "playchess.com"]
[Source "ChessBase"]
[SourceQuality "1"]
[TimeControl "40/5400+30:1800+30"]

{[%evp 10,58,10,11,16,-41,32767,-2,-4,32767,32767,32767,32767,-94,32767,-237,-223,-285,32767,32767,-69,-186,-44,-153,-80,-93,-53,-202,-187,-192,-57,-86,-72,-195,32767,32767,32767,32767,32767,-383,-401,-366,-392,-373,-397,-378,-387,-579,-636,-605,-595]} 1. e4 {[%emt 0:00:32]} c5 {[%emt 0:04:10]} 2. Nf3 {[%emt 0:03:31]} d6 {[%emt 0:00:17]} 3. d3 {[%emt 0:00:13]} Nc6 {[%emt 0:02:10]} 4. g3 {[%emt 0:00:16]} e5 {[%emt 0:03:25]} (4... g6 5. Bg2 Bg7 6. O-O e5 7. Nc3 Nge7 8. Nh4 O-O 9. f4 exf4 10. Bxf4 Nd4 11. Qd2 Be6 12. Rf2 Nec6 13. Bh6 Ne5 14. h3 Qd7 15. Bxg7 Kxg7 16. Kh2 f6 17. Raf1 Rae8 18. Nd5 Bxd5 19. exd5 {1-0 (57) Martinez Duany,L (2547)-Hernandez Gonzalez,W (2445) Santa Clara 2019}) 5. Bg2 {[%emt 0:00:24]} Be7 {[%emt 0:02:09]} 6. O-O {[%emt 0:00:29] B50: Sicilian: 2...d6, Miscellaneous} h5 {[%emt 0:11:43]} 7. h3 {[%emt 0:01:21]} (7. h4 $11) 7... Be6 {[%emt 0:14:59]} 8. c3 $146 {[%emt 0:01:53]} ({Predecessor:} 8. c4 g5 9. Nc3 g4 10. hxg4 Bxg4 11. Be3 h4 12. gxh4 Bxh4 {0-1 (39) Ortel,E (2345)-Horvath,S (2300) Hungary 1996}) 8... g5 {[%emt 0:08:57]} 9. Be3 {[%emt 0:07:20]} g4 {[%emt 0:01:31]} 10. hxg4 {[%emt 0:00:13]} hxg4 {[%emt 0:01:07]} 11. Nh2 {[%emt 0:04:11]} Qd7 {[%emt 0:06:40]} 12. f3 $2 {[%emt 0:02:39]} (12. b4 $15) 12... gxf3 {[%emt 0:03:15]} 13. Bxf3 {[%emt 0:04:54]} Nf6 {[%emt 0:02:33]} 14. d4 {[%emt 0:08:18]} Bc4 $2 {[%emt 0:13:07]} ({Better is} 14... cxd4 $19 15. cxd4 exd4 16. Bxd4 d5 17. Bxf6 Bxf6) 15. Rf2 {[%emt 0:02:08]} (15. d5 $1 $15 Na5 16. Rf2) 15... Qh3 {[%emt 0:00:58]} ({Black should play} 15... exd4 $19 16. cxd4 Qh3) 16. Rg2 $2 {[%emt 0:01:33]} (16. d5 $1 $11) 16... O-O-O {[%emt 0:03:39]} (16... exd4 $19 {and Black stays clearly on top.} 17. cxd4 d5) 17. d5 {[%emt 0:15:40]} Nb8 {[%emt 0:00:33]} 18. Bg4+ {[%emt 0:03:34]} (18. Na3 $15 Rdg8 19. Nxc4 Rxg3 20. Kf2 Rxg2+ 21. Bxg2 Qh4+ 22. Kf1 Qxh2 23. Qf3) 18... Nxg4 {[%emt 0:00:19]} 19. Qxg4+ {[%emt 0:00:06]} Qxg4 {[%emt 0:02:28]} (19... Nd7 $19 20. Nd2 Bd3 21. Qxh3 Rxh3) 20. Nxg4 {[%emt 0:00:33] [#]} f5 $1 {[%emt 0:03:12]} 21. exf5 {[%emt 0:09:27]} (21. Nd2 $17 Bxd5 22. exd5 fxg4 23. Rf1) 21... Rdf8 {[%emt 0:04:53]} 22. Bh6 {[%emt 0:10:31]} Rfg8 {[%emt 0:01:41]} 23. Ne3 {[%emt 0:03:32]} Bd3 {[%emt 0:01:11]} 24. Rh2 {[%emt 0:03:45] [#]} Rxh6 $1 {[%emt 0:01:29]} 25. Rxh6 {[%emt 0:00:22]} Bg5 {[%emt 0:00:11] Double Attack} 26. Ng4 {[%emt 0:04:24]} Bxh6 {[%emt 0:03:49]} 27. Nxh6 {[%emt 0:00:04]} Rxg3+ {[%emt 0:00:21]} 28. Kh2 {[%emt 0:02:10]} (28. Kf2 {was the only defense.} Rh3 29. Nf7) 28... Rg7 {[%emt 0:00:48]} 29. Nd2 {[%emt 0:02:20]} Rh7 $19 {[%emt 0:00:15]} 0-1

[Event "Groningen Festival 2019-B"]
[Site "Groningen"]
[Date "2019.12.24"]
[Round "4.2"]
[White "Noordenbos, Daan"]
[Black "De Vries, Leon"]
[Result "1/2-1/2"]
[ECO "B95"]
[WhiteElo "2023"]
[BlackElo "1934"]
[Annotator "NA RC"]
[PlyCount "54"]
[EventDate "2019.12.15"]
[EventType "swiss"]
[EventCountry "NED"]
[SourceTitle "playchess.com"]
[Source "ChessBase"]
[SourceQuality "1"]
[TimeControl "40/5400+30:1800+30"]

{[%evp 8,49,30,20,23,22,10,12,32767,-6,32767,32767,32767,-19,-32,-40,-16,-4,83,32767,89,32767,32767,32767,32767,0,0,0,6,0,32767,0,32767,32767,32767,32767,32767,32767,32767,-461,-253,32767,-241,-256]} 1. e4 {[%emt 0:00:00]} c5 {[%emt 0:00:00]} 2. Nf3 {[%emt 0:00:00]} d6 {[%emt 0:00:00]} 3. d4 {[%emt 0:00:00]} cxd4 {[%emt 0:00:04]} 4. Nxd4 {[%emt 0:00:00]} Nf6 {[%emt 0:00:13]} 5. Nc3 {[%emt 0:00:00]} a6 {[%emt 0:00:37]} 6. Bg5 {[%emt 0:00:00]} e6 {[%emt 0:00:22]} 7. Qf3 {[%emt 0:00:02]} h6 {[%emt 0:02:30]} 8. Bh4 {[%emt 0:02:58]} Be7 {[%emt 0:00:08] B95: Sicilian Najdorf: 6 Bg5 e6, unusual White 7th moves} 9. O-O-O {[%emt 0:01:20]} Qc7 {[%emt 0:02:01]} 10. g4 {[%emt 0:08:35]} Nbd7 {[%emt 0:11:09]} 11. Bg3 {[%emt 0:03:15]} Ne5 {[%emt 0:07:11]} 12. Qe2 $1 {[%emt 0:08:24]} g5 $146 {[%emt 0:08:59]} (12... b5 $11) ({Predecessor:} 12... Nexg4 13. Bh3 h5 14. f3 h4 15. Be1 Ne5 16. f4 {0-1 (48) Ivanovic,B (2470)-Muhutdinov,M (2425) Cetinje 1992}) 13. h4 {[%emt 0:14:03]} Rg8 {[%emt 0:09:01]} 14. hxg5 {[%emt 0:18:51]} hxg5 {[%emt 0:00:35]} 15. Bxe5 {[%emt 0:04:28]} dxe5 {[%emt 0:00:09]} 16. Nb3 {[%emt 0:00:14]} Bd7 {[%emt 0:03:53]} 17. Qf3 {[%emt 0:00:42]} Rg6 {[%emt 0:26:17]} 18. Rh8+ {[%emt 0:01:01]} Bf8 {[%emt 0:00:12]} 19. Be2 {[%emt 0:07:43]} O-O-O {[%emt 0:04:37]} 20. Qe3 {[%emt 0:00:43]} Kb8 {[%emt 0:02:11]} 21. Nc5 {[%emt 0:03:48]} Bxc5 {[%emt 0:01:49]} 22. Rxd8+ {[%emt 0:00:09]} Ka7 {[%emt 0:00:03]} 23. Nb5+ {[%emt 0:18:43]} axb5 {[%emt 0:08:23]} (23... Bxb5 $142 24. Qf3 Bc6) 24. Qc3 {[%emt 0:00:14]} Qxd8 {[%emt 0:08:06]} 25. Qxc5+ $19 {[%emt 0:00:03]} Qb6 {[%emt 0:00:06]} 26. Qa3+ {[%emt 0:01:10]} Qa6 {[%emt 0:01:13]} 27. Qc5+ {[%emt 0:00:02]} Qb6 {[%emt 0:00:39]} 1/2-1/2

[Event "Groningen Festival 2019-B"]
[Site "Groningen"]
[Date "2019.12.24"]
[Round "4.3"]
[White "Neuendorf, Max"]
[Black "Salihbegovic, Edim"]
[Result "1/2-1/2"]
[ECO "C42"]
[WhiteElo "1994"]
[BlackElo "2011"]
[Annotator "NA RC"]
[PlyCount "136"]
[EventDate "2019.12.15"]
[EventType "swiss"]
[EventCountry "NED"]
[SourceTitle "playchess.com"]
[Source "ChessBase"]
[SourceQuality "1"]
[TimeControl "40/5400+30:1800+30"]

{[%evp 17,136,20,37,9,31,9,41,-26,389,411,373,422,32767,32767,447,310,322,327,335,337,343,368,339,320,328,32767,32767,32767,32767,32767,32767,32767,32767,32767,293,305,32767,32767,428,265,418,413,446,423,430,281,32767,265,252,271,32767,32767,32767,32767,32767,32767,32767,32767,32767,32767,32767,32767,32767,214,283,174,267,235,275,225,261,286,328,32767,32767,344,360,363,393,406,409,448,444,412,435,437,433,430,448,438,438,477,462,328,312,15,19,17,17,32767,32767,32767,32767,10,8,12,8,8,8,8,0,0,337,343,0,343,343,0,0,323,29986]} 1. e4 {[%emt 0:00:00]} e5 {[%emt 0:00:57]} 2. Nf3 {[%emt 0:01:32]} Nf6 {[%emt 0:00:06]} 3. Nxe5 {[%emt 0:00:11]} d6 {[%emt 0:00:05]} 4. Nf3 {[%emt 0:00:16]} Nxe4 {[%emt 0:00:06]} 5. d4 {[%emt 0:00:15]} d5 {[%emt 0:00:05]} 6. Bd3 {[%emt 0:00:15]} Bd6 {[%emt 0:00:04]} 7. c4 {[%emt 0:00:38]} c6 {[%emt 0:00:28]} 8. Qc2 {[%emt 0:00:16]} O-O {[%emt 0:04:43]} 9. O-O {[%emt 0:15:44]} Na6 {[%emt 0:01:32]} 10. a3 {[%emt 0:01:08]} Bg4 {[%emt 0:00:13]} 11. Ne5 {[%emt 0:07:57] C42: Petroff Defence: 3 Nxe5 and unusual White 3rd moves} Bf5 {[%emt 0:00:27]} 12. Nc3 {[%emt 0:10:52]} (12. b4 $142) 12... c5 $2 $146 {[%emt 0:44:21]} ({Predecessor:} 12... Bxe5 $15 {stays ahead.} 13. dxe5 Nac5 14. cxd5 cxd5 {½-½ (14) Piorun,K (2631)-Wei,Y (2728) Khanty-Mansiysk 2017}) 13. Nxd5 {[%emt 0:18:20]} ({Not} 13. Nxe4 dxe4 14. Bxe4 Bxe4 $14) 13... cxd4 {[%emt 0:05:39]} 14. Bxe4 {[%emt 0:10:51]} Bxe4 {[%emt 0:00:31]} 15. Qxe4 {[%emt 0:00:07]} Nc5 {[%emt 0:07:12]} 16. Qxd4 {[%emt 0:07:43]} Nb3 {[%emt 0:00:42]} 17. Qc3 {[%emt 0:01:29]} Nxa1 {[%emt 0:01:14]} 18. Bf4 {[%emt 0:01:49]} Bxe5 {[%emt 0:07:16]} 19. Bxe5 {[%emt 0:00:10]} f6 {[%emt 0:00:08]} 20. Bf4 {[%emt 0:01:54]} ({Not} 20. Rxa1 fxe5 21. Re1 (21. Qxe5 Qh4 $11) 21... Qd6 $11) 20... Rc8 {[%emt 0:02:16]} 21. Rxa1 {[%emt 0:03:37]} b5 {[%emt 0:00:05]} 22. Ne3 {[%emt 0:01:11]} bxc4 {[%emt 0:01:57]} 23. Nxc4 {[%emt 0:01:25]} Qd5 {[%emt 0:00:50]} 24. b3 {[%emt 0:01:09]} Rfd8 {[%emt 0:00:46]} 25. h3 {[%emt 0:00:34]} Qe4 {[%emt 0:02:58]} 26. Be3 {[%emt 0:00:52]} Rd3 {[%emt 0:03:51]} 27. Qb4 {[%emt 0:00:04]} Rcd8 {[%emt 0:02:50]} (27... a6 $142 28. Re1 Qc6) 28. Qb5 {[%emt 0:07:20]} a6 $2 {[%emt 0:05:45]} (28... Qd5 {is a better defense.} 29. Qb4 a6) 29. Qxa6 {[%emt 0:01:47]} f5 {[%emt 0:01:48]} 30. Bg5 {[%emt 0:02:00]} Re8 {[%emt 0:02:06]} 31. Nd6 {[%emt 0:01:32]} Qd4 {[%emt 0:00:06] [#]} 32. Qc4+ $1 {[%emt 0:01:09]} ({Weaker is} 32. Nxe8 Qxa1+ 33. Kh2 Qe5+ 34. g3 Qe2 $11) 32... Qxc4 {[%emt 0:00:38]} 33. Nxc4 {[%emt 0:00:01]} Rxb3 {[%emt 0:00:16]} 34. Be3 {[%emt 0:00:49]} Rc3 {[%emt 0:00:22]} 35. Nb6 {[%emt 0:01:17]} Re6 {[%emt 0:01:13]} 36. Nd5 {[%emt 0:00:39]} Rb3 {[%emt 0:00:26]} 37. Nb4 {[%emt 0:00:40]} Re4 {[%emt 0:01:02]} 38. Kf1 {[%emt 0:00:38]} f4 {[%emt 0:00:30]} 39. Bd2 {[%emt 0:00:30]} Rd4 {[%emt 0:01:11]} 40. Be1 {[%emt 0:00:40]} Kf7 {[%emt 0:02:33]} 41. Ra2 {[%emt 0:04:20]} Rc4 {[%emt 0:04:34]} (41... Rb1 $142 42. f3 Rdd1) 42. Nc2 {[%emt 0:03:42]} f3 {[%emt 0:04:23]} 43. gxf3 {[%emt 0:06:44]} Ra4 {[%emt 0:08:09]} 44. Kg2 {[%emt 0:00:29]} Rb6 {[%emt 0:04:07]} 45. Bb4 {[%emt 0:02:02]} Rg6+ {[%emt 0:00:11]} 46. Kh2 {[%emt 0:01:14]} Rf6 {[%emt 0:00:19]} 47. Nd4 {[%emt 0:00:50]} h5 {[%emt 0:03:55]} 48. Re2 {[%emt 0:04:47]} Ra8 {[%emt 0:01:20]} 49. Re7+ {[%emt 0:01:40]} Kg6 {[%emt 0:00:17]} 50. Rd7 {[%emt 0:00:58]} h4 {[%emt 0:00:27]} 51. Kg2 {[%emt 0:01:20]} Kh7 {[%emt 0:00:06]} 52. Kf1 {[%emt 0:00:17]} Rc8 {[%emt 0:00:37]} 53. Ke2 {[%emt 0:00:51]} Rc1 {[%emt 0:00:13]} 54. f4 {[%emt 0:02:48]} Rh1 {[%emt 0:01:14]} 55. Nf3 {[%emt 0:00:44]} Rxf4 {[%emt 0:00:55]} 56. Bc3 $2 {[%emt 0:00:45]} (56. Ng5+ $18 Kh6 57. Bd2) 56... Rxf3 $1 {[%emt 0:00:27]} 57. Rxg7+ {[%emt 0:02:59]} Kh6 {[%emt 0:00:28]} 58. Kxf3 {[%emt 0:00:44]} Rxh3+ {[%emt 0:00:09]} 59. Kg2 {[%emt 0:00:12]} Rxc3 {[%emt 0:00:11]} 60. Ra7 {[%emt 0:00:34]} h3+ {[%emt 0:01:19]} 61. Kh2 {[%emt 0:00:13]} Rf3 {[%emt 0:00:28]} 62. a4 {[%emt 0:00:15]} Rxf2+ {[%emt 0:00:31]} 63. Kxh3 {[%emt 0:00:06]} Kg6 {[%emt 0:01:01]} 64. a5 {[%emt 0:00:30]} Ra2 $2 {[%emt 0:02:19]} (64... Rf3+ $11 {and Black stays safe.} 65. Kg4 Rf8) 65. a6 {[%emt 0:00:25]} Rb2 {[%emt 0:02:56] [#]} 66. Ra8 $1 {[%emt 0:00:24]} Kg7 {[%emt 0:01:05]} 67. a7 {[%emt 0:00:17]} Ra2 {[%emt 0:00:41] [#]} 68. Kg3 $1 {[%emt 0:03:04]} Rb2 {[%emt 0:00:47]} (68... Ra3+ $11 69. Kf4 Ra5) 1/2-1/2

[Event "Groningen Festival 2019-B"]
[Site "Groningen"]
[Date "2019.12.24"]
[Round "4.4"]
[White "De Winter, Arthur"]
[Black "Novotny, David"]
[Result "0-1"]
[ECO "C12"]
[WhiteElo "1932"]
[BlackElo "1810"]
[Annotator "NA RC"]
[PlyCount "86"]
[EventDate "2019.12.15"]
[EventType "swiss"]
[EventCountry "NED"]
[SourceTitle "playchess.com"]
[Source "ChessBase"]
[SourceQuality "1"]
[TimeControl "40/5400+30:1800+30"]

{[%evp 8,86,4,32767,32767,32767,32767,32767,-17,32767,32767,-15,-21,-20,32767,32767,0,0,0,0,0,0,0,32767,32767,0,0,-44,-20,-14,-39,-39,-13,32767,32767,32767,-20,-77,-61,-79,32767,32767,32767,-65,-56,-87,-91,-77,-50,-152,-110,32767,32767,32767,32767,32767,32767,32767,32767,32767,32767,-283,-242,-270,-260,-347,-245,-250,-272,-273,-301,-363,-375,-29986,32767,32767,-29989,-29988,-29990,-29997,-29998]} 1. e4 {[%emt 0:00:00]} e6 {[%emt 0:00:00]} 2. d4 {[%emt 0:00:00]} d5 {[%emt 0:00:00]} 3. Nc3 {[%emt 0:00:00]} Nf6 {[%emt 0:00:39]} 4. Bg5 {[%emt 0:00:05]} Bb4 {[%emt 0:01:07]} 5. e5 {[%emt 0:00:14]} h6 {[%emt 0:00:06]} 6. Bd2 {[%emt 0:00:09]} Bxc3 {[%emt 0:00:19]} 7. bxc3 {[%emt 0:00:09]} Ne4 {[%emt 0:00:06]} 8. Qg4 {[%emt 0:00:09]} g6 {[%emt 0:06:56]} 9. Bd3 {[%emt 0:00:43]} Nxd2 {[%emt 0:01:11]} 10. Kxd2 {[%emt 0:00:06]} b6 {[%emt 0:04:19] C12: French: Classical System: McCutcheon Variation} (10... c5 11. Nf3 Nc6 12. dxc5 Qa5 13. Qf4 Qxc5 14. Nd4 Bd7 15. Rhb1 O-O-O 16. Rb5 Qe7 17. Rab1 b6 18. Nxc6 Bxc6 19. R5b4 g5 {½-½ (65) Anand,V (2817)-Nakamura,H (2774) Monte Carlo 2011}) 11. Nf3 {[%emt 0:16:02]} Ba6 {[%emt 0:01:24]} 12. a4 $146 {[%emt 0:04:00]} ({Predecessor:} 12. Rhe1 Bxd3 13. cxd3 Nd7 14. Ke2 c5 15. Kf1 Qe7 16. c4 dxc4 17. dxc4 cxd4 18. Nxd4 {½-½ (27) Kuld,V (2075)-Vahtra,T (1949) Viljandi 2004}) 12... Bxd3 {[%emt 0:06:10]} 13. cxd3 {[%emt 0:00:13]} Nc6 {[%emt 0:03:42]} 14. Ke2 {[%emt 0:08:41]} Na5 {[%emt 0:02:22]} 15. Rhe1 {[%emt 0:00:39]} Qd7 {[%emt 0:05:08]} 16. Qf4 {[%emt 0:05:33]} O-O-O {[%emt 0:02:20]} 17. Kf1 {[%emt 0:00:50]} g5 {[%emt 0:07:05]} 18. Qe3 {[%emt 0:02:05]} Qc6 {[%emt 0:06:03]} 19. Ra3 {[%emt 0:01:13]} Kb8 {[%emt 0:00:10]} 20. Rb1 {[%emt 0:03:10]} Ka8 {[%emt 0:04:00]} 21. Ne1 {[%emt 0:02:28]} f5 {[%emt 0:06:24]} 22. Nc2 {[%emt 0:07:20]} Qd7 {[%emt 0:02:26]} 23. Na1 {[%emt 0:07:28]} f4 {[%emt 0:03:35]} 24. Qe2 {[%emt 0:01:19]} h5 {[%emt 0:01:43]} 25. Nb3 {[%emt 0:03:13]} Nxb3 {[%emt 0:00:39]} 26. Raxb3 {[%emt 0:00:10]} Qxa4 {[%emt 0:08:38]} 27. Qb2 {[%emt 0:00:27]} Qd7 {[%emt 0:08:48]} 28. Qa3 {[%emt 0:05:53]} Rb8 {[%emt 0:01:02]} ({And not} 28... a5 29. Rb5 $11) 29. Qa6 {[%emt 0:03:08]} Rb7 {[%emt 0:01:25]} 30. Ra1 {[%emt 0:01:09]} g4 {[%emt 0:01:28]} 31. Rba3 {[%emt 0:07:13]} c6 {[%emt 0:00:24]} 32. Rb3 {[%emt 0:00:16]} Qc7 {[%emt 0:01:49]} 33. Ke2 {[%emt 0:03:01] [#]} f3+ $1 {[%emt 0:03:04]} 34. gxf3 {[%emt 0:00:49]} gxf3+ {[%emt 0:00:14]} 35. Kxf3 {[%emt 0:01:49]} Rf8+ {[%emt 0:01:06]} ({Don't play} 35... Qf7+ 36. Ke2 $19) 36. Ke2 {[%emt 0:00:57]} (36. Ke3 $142) 36... Qf7 {[%emt 0:01:12]} 37. Rf1 {[%emt 0:00:11]} Qf3+ {[%emt 0:00:30]} 38. Ke1 {[%emt 0:00:17]} Qf4 {[%emt 0:03:35]} 39. Qa3 {[%emt 0:02:50]} (39. Rb1 $142) 39... Rbf7 {[%emt 0:07:28]} 40. Rxb6 $2 {[%emt 0:01:19]} (40. Qb2 $19) 40... Qe3+ {[%emt 0:00:46]} 41. Kd1 {[%emt 0:30:33]} Qxd3+ {[%emt 0:03:26] Double Attack} 42. Ke1 {[%emt 0:00:00] [#]} Rf4 $1 {[%emt 0:01:57]} 43. f3 {[%emt 0:00:00] [#]} Re4+ {[%emt 0:00:13] Pin} 0-1